[Event "106th British-ch Major 2019"]
[Site "Torquay"]
[Date "2019.08.02"]
[Round "7.4"]
[White "Ashworth, Michael J"]
[Black "Turner, Max N"]
[Result "1/2-1/2"]
[ECO "D57"]
[WhiteElo "1957"]
[BlackElo "2026"]
[Annotator "NA"]
[PlyCount "122"]
[EventDate "2019.07.27"]
[EventType "swiss"]
[EventCountry "GBR"]
[SourceTitle "playchess.com"]
[Source "ChessBase"]
[SourceQuality "1"]
[TimeControl "40/5400+30:1800+30"]

1. d4 {[%emt 0:00:00]} d5 {[%emt 0:00:00]} 2. c4 {[%emt 0:00:00]} e6 {[%emt 0:00:00]} 3. Nc3 {[%emt 0:00:00]} Be7 {[%emt 0:00:10]} 4. Nf3 {[%emt 0:00:31]} Nf6 {[%emt 0:00:07]} 5. Bg5 {[%emt 0:00:35]} O-O {[%emt 0:00:17]} 6. e3 {[%emt 0:00:36]} h6 {[%emt 0:01:03]} 7. Bh4 {[%emt 0:00:18]} Ne4 {[%emt 0:00:21]} 8. Bxe7 {[%emt 0:04:18]} Qxe7 {[%emt 0:00:07]} 9. cxd5 {[%emt 0:00:25]} Nxc3 {[%emt 0:01:06]} 10. bxc3 {[%emt 0:00:06]} exd5 {[%emt 0:00:05]} 11. Bd3 {[%emt 0:00:25]} b6 {[%emt 0:09:18]} 12. O-O {[%emt 0:06:39]} Bb7 {[%emt 0:04:48]} 13. a4 {[%emt 0:14:46]} c5 {[%emt 0:21:02]} 14. Qb1 {[%emt 0:15:50]} cxd4 {[%emt 0:15:23]} 15. cxd4 {[%emt 0:07:41]} Nc6 {[%emt 0:00:55]} 16. Rc1 {[%emt 0:09:00]} Rac8 {[%emt 0:00:55]} 17. Bh7+ {[%emt 0:16:46]} Kh8 {[%emt 0:00:08]} 18. Bf5 {[%emt 0:00:05]} Rcd8 {[%emt 0:03:01]} 19. Nd2 {[%emt 0:01:40]} g6 {[%emt 0:06:52]} 20. Bd3 {[%emt 0:03:47]} Rc8 {[%emt 0:01:10]} 21. Bb5 {[%emt 0:06:04]} Na5 {[%emt 0:04:15]} 22. Qb2 {[%emt 0:01:45]} Qd6 {[%emt 0:01:43]} 23. Nf3 {[%emt 0:01:54]} Kg7 {[%emt 0:09:09]} 24. Ne5 {[%emt 0:00:31]} Rxc1+ {[%emt 0:00:37]} 25. Rxc1 {[%emt 0:00:07]} Rc8 {[%emt 0:00:09]} 26. Rxc8 {[%emt 0:00:46]} Bxc8 {[%emt 0:00:06]} 27. Qc3 {[%emt 0:00:12]} Be6 {[%emt 0:00:20]} 28. h3 {[%emt 0:01:16]} Qb8 {[%emt 0:06:10]} 29. Nd3 {[%emt 0:01:07]} Qc8 {[%emt 0:01:04]} 30. Qxc8 {[%emt 0:00:15]} Bxc8 {[%emt 0:00:05]} 31. Nb4 {[%emt 0:00:30]} Bb7 {[%emt 0:02:44]} 32. Kf1 {[%emt 0:03:38]} Kf6 {[%emt 0:00:44]} 33. Ke2 {[%emt 0:00:07]} Ke6 {[%emt 0:00:26]} 34. Kd3 {[%emt 0:01:03]} Kd6 {[%emt 0:04:16]} 35. Be8 {[%emt 0:01:23]} Nc6 {[%emt 0:04:11]} 36. Nxd5 {[%emt 0:03:09]} Kxd5 {[%emt 0:00:12]} 37. Bxf7+ {[%emt 0:00:03]} Kd6 {[%emt 0:00:12]} 38. Bxg6 {[%emt 0:00:05]} Ne7 {[%emt 0:04:09]} 39. Be4 {[%emt 0:00:09]} Bxe4+ {[%emt 0:00:51]} 40. Kxe4 {[%emt 0:00:01]} Nd5 {[%emt 0:00:13]} 41. Kd3 {[%emt 0:03:47]} h5 {[%emt 0:01:45]} 42. g3 {[%emt 0:01:08]} Nb4+ {[%emt 0:04:50]} 43. Kc4 {[%emt 0:01:33]} Nc2 {[%emt 0:00:08]} 44. e4 {[%emt 0:00:54]} a6 {[%emt 0:00:54]} 45. f4 {[%emt 0:05:11]} b5+ {[%emt 0:00:49]} 46. axb5 {[%emt 0:00:13]} axb5+ {[%emt 0:00:11]} 47. Kc3 {[%emt 0:02:51]} Ne3 {[%emt 0:05:16]} 48. f5 {[%emt 0:06:15]} Nf1 {[%emt 0:00:18]} 49. e5+ {[%emt 0:04:34]} Kd5 {[%emt 0:00:56]} 50. f6 {[%emt 0:00:26]} Ke6 {[%emt 0:00:21]} 51. d5+ {[%emt 0:00:35]} Kf7 {[%emt 0:00:08]} 52. g4 {[%emt 0:05:12]} hxg4 {[%emt 0:09:09]} 53. hxg4 {[%emt 0:00:15]} Ne3 {[%emt 0:00:05]} 54. d6 {[%emt 0:03:23]} Ke6 {[%emt 0:00:10]} 55. g5 {[%emt 0:00:55]} Ng4 {[%emt 0:00:44]} 56. d7 {[%emt 0:02:10]} Kxd7 {[%emt 0:01:51]} 57. g6 {[%emt 0:00:26]} Ke8 {[%emt 0:00:21]} 58. f7+ {[%emt 0:01:02]} Kf8 {[%emt 0:00:28]} 59. e6 {[%emt 0:00:28]} Ne5 {[%emt 0:00:06]} 60. Kb4 {[%emt 0:00:28]} Nxg6 {[%emt 0:00:05]} 61. Kxb5 {[%emt 0:00:06]} Nf4 {[%emt 0:00:09]} 1/2-1/2

[Event "106th British-ch Major 2019"]
[Site "Torquay"]
[Date "2019.08.02"]
[Round "7.5"]
[White "Miller, Dominic"]
[Black "Hagesaether, Arne"]
[Result "1/2-1/2"]
[ECO "B14"]
[WhiteElo "2140"]
[BlackElo "2046"]
[Annotator "NA"]
[PlyCount "56"]
[EventDate "2019.07.27"]
[EventType "swiss"]
[EventCountry "GBR"]
[SourceTitle "playchess.com"]
[Source "ChessBase"]
[SourceQuality "1"]
[TimeControl "40/5400+30:1800+30"]

1. e4 {[%emt 0:00:00]} c6 {[%emt 0:01:27]} 2. d4 {[%emt 0:00:02]} d5 {[%emt 0:00:19]} 3. exd5 {[%emt 0:00:04]} cxd5 {[%emt 0:00:08]} 4. c4 {[%emt 0:00:03]} Nf6 {[%emt 0:00:37]} 5. Nc3 {[%emt 0:00:08]} g6 {[%emt 0:00:42]} 6. Qb3 {[%emt 0:00:40]} Bg7 {[%emt 0:01:04]} 7. cxd5 {[%emt 0:00:08]} O-O {[%emt 0:00:28]} 8. Be2 {[%emt 0:00:15]} Na6 {[%emt 0:05:02]} 9. Bf3 {[%emt 0:06:07]} b5 {[%emt 0:08:39]} 10. d6 {[%emt 0:12:48]} Rb8 {[%emt 0:00:58]} 11. dxe7 {[%emt 0:00:35]} Re8 {[%emt 0:00:27]} 12. Nge2 {[%emt 0:01:15]} Qxe7 {[%emt 0:02:54]} 13. Bf4 {[%emt 0:32:13]} Be6 {[%emt 0:05:09]} 14. Qa3 {[%emt 0:05:39]} Nb4 {[%emt 0:00:40]} 15. O-O {[%emt 0:09:46]} Rb6 {[%emt 0:01:17]} 16. d5 {[%emt 0:11:03]} Nfxd5 {[%emt 0:08:32]} 17. Nxd5 {[%emt 0:03:12]} Bxd5 {[%emt 0:01:03]} 18. Bxd5 {[%emt 0:00:24]} Nxd5 {[%emt 0:00:50]} 19. Qxe7 {[%emt 0:00:05]} Rxe7 {[%emt 0:00:10]} 20. Rad1 {[%emt 0:00:18]} Rxe2 {[%emt 0:06:24]} 21. Rxd5 {[%emt 0:00:02]} Bxb2 {[%emt 0:01:03]} 22. Be3 {[%emt 0:01:57]} Rb7 {[%emt 0:08:18]} 23. Rb1 {[%emt 0:00:07]} f6 {[%emt 0:01:56]} 24. Kf1 {[%emt 0:03:49]} Rc2 {[%emt 0:01:16]} 25. Rd8+ {[%emt 0:03:27]} Kf7 {[%emt 0:01:38]} 26. Ra8 {[%emt 0:00:13]} Be5 {[%emt 0:06:30]} 27. a4 {[%emt 0:00:42]} b4 {[%emt 0:08:27]} 28. Rxa7 {[%emt 0:00:07]} Rxa7 {[%emt 0:00:25]} 1/2-1/2

[Event "106th British-ch Major 2019"]
[Site "Torquay"]
[Date "2019.08.02"]
[Round "7.6"]
[White "Balaji, Aaravamudhan"]
[Black "Pollack, Oscar"]
[Result "1-0"]
[ECO "A50"]
[WhiteElo "2034"]
[BlackElo "2088"]
[Annotator "NA"]
[PlyCount "75"]
[EventDate "2019.07.27"]
[EventType "swiss"]
[EventCountry "GBR"]
[SourceTitle "playchess.com"]
[Source "ChessBase"]
[SourceQuality "1"]
[TimeControl "40/5400+30:1800+30"]

1. d4 {[%emt 0:00:00]} Nf6 {[%emt 0:00:00]} 2. c4 {[%emt 0:00:00]} Nc6 {[%emt 0:00:00]} 3. Nc3 {[%emt 0:00:00]} e5 {[%emt 0:00:00]} 4. d5 {[%emt 0:00:07]} Ne7 {[%emt 0:00:00]} 5. e4 {[%emt 0:00:59]} Ng6 {[%emt 0:01:07]} 6. g3 {[%emt 0:01:04]} Bc5 {[%emt 0:00:49]} 7. Bg2 {[%emt 0:00:37]} d6 {[%emt 0:00:54]} 8. h3 {[%emt 0:03:11]} O-O {[%emt 0:01:03]} 9. Nge2 {[%emt 0:00:53]} c6 {[%emt 0:02:26]} 10. O-O {[%emt 0:01:20]} a5 {[%emt 0:01:14]} 11. Rb1 {[%emt 0:01:11]} Bd7 {[%emt 0:04:24]} 12. a3 {[%emt 0:09:32]} cxd5 {[%emt 0:02:36]} 13. b4 {[%emt 0:01:03]} axb4 {[%emt 0:01:33]} 14. axb4 {[%emt 0:00:01]} Bb6 {[%emt 0:00:58]} 15. Bg5 {[%emt 0:10:07]} Qc8 {[%emt 0:06:36]} 16. Bxf6 {[%emt 0:03:56]} gxf6 {[%emt 0:00:58]} 17. Nxd5 {[%emt 0:01:11]} Bd8 {[%emt 0:00:05]} 18. Ne3 {[%emt 0:01:21]} Bxh3 {[%emt 0:06:34]} 19. Nc3 {[%emt 0:08:05]} Bxg2 {[%emt 0:07:05]} 20. Kxg2 {[%emt 0:00:49]} Kh8 {[%emt 0:04:54]} 21. Rh1 {[%emt 0:08:56]} Rg8 {[%emt 0:02:33]} 22. Rxh7+ {[%emt 0:02:22]} Kxh7 {[%emt 0:00:20]} 23. Qh5+ {[%emt 0:00:17]} Kg7 {[%emt 0:00:50]} 24. Nf5+ {[%emt 0:00:13]} Kf8 {[%emt 0:05:45]} 25. Qh6+ {[%emt 0:00:35]} Ke8 {[%emt 0:00:40]} 26. Nxd6+ {[%emt 0:00:18]} Ke7 {[%emt 0:00:41]} 27. Nxc8+ {[%emt 0:00:19]} Rxc8 {[%emt 0:00:02]} 28. Nd5+ {[%emt 0:01:42]} Ke8 {[%emt 0:00:04]} 29. c5 {[%emt 0:00:34]} Ra8 {[%emt 0:01:11]} 30. b5 {[%emt 0:01:15]} f5 {[%emt 0:07:11]} 31. exf5 {[%emt 0:02:01]} Nh4+ {[%emt 0:02:51]} 32. Kf1 {[%emt 0:00:18]} Nxf5 {[%emt 0:01:05]} 33. Nf6+ {[%emt 0:00:20]} Bxf6 {[%emt 0:00:11]} 34. Qxf6 {[%emt 0:00:01]} Nd4 {[%emt 0:02:06]} 35. Qxe5+ {[%emt 0:00:31]} Ne6 {[%emt 0:00:01]} 36. c6 {[%emt 0:00:18]} bxc6 {[%emt 0:00:26]} 37. bxc6 {[%emt 0:00:01]} Rc8 {[%emt 0:00:25]} 38. Qd6 {[%emt 0:00:56]} 1-0

[Event "106th British-ch Major 2019"]
[Site "Torquay"]
[Date "2019.08.02"]
[Round "7.7"]
[White "Sugden, John N"]
[Black "Lentzos, Ioannis"]
[Result "1/2-1/2"]
[ECO "E24"]
[WhiteElo "2068"]
[BlackElo "2043"]
[Annotator "NA"]
[PlyCount "88"]
[EventDate "2019.07.27"]
[EventType "swiss"]
[EventCountry "GBR"]
[SourceTitle "playchess.com"]
[Source "ChessBase"]
[SourceQuality "1"]
[TimeControl "40/5400+30:1800+30"]

1. d4 {[%emt 0:00:00]} Nf6 {[%emt 0:00:00]} 2. c4 {[%emt 0:00:16]} e6 {[%emt 0:00:00]} 3. Nc3 {[%emt 0:00:47]} Bb4 {[%emt 0:00:00]} 4. a3 {[%emt 0:00:15]} Bxc3+ {[%emt 0:00:00]} 5. bxc3 {[%emt 0:00:10]} c5 {[%emt 0:00:00]} 6. f3 {[%emt 0:00:24]} Nc6 {[%emt 0:01:07]} 7. e4 {[%emt 0:00:46]} b6 {[%emt 0:00:24]} 8. Be3 {[%emt 0:08:29]} O-O {[%emt 0:05:38]} 9. Bd3 {[%emt 0:10:01]} d6 {[%emt 0:01:21]} 10. Ne2 {[%emt 0:06:33]} Ba6 {[%emt 0:02:30]} 11. Ng3 {[%emt 0:04:55]} Na5 {[%emt 0:02:50]} 12. Qe2 {[%emt 0:00:20]} Nd7 {[%emt 0:01:34]} 13. O-O {[%emt 0:01:59]} Rc8 {[%emt 0:00:23]} 14. Rac1 {[%emt 0:09:37]} Qc7 {[%emt 0:08:21]} 15. f4 {[%emt 0:05:09]} cxd4 {[%emt 0:01:53]} 16. cxd4 {[%emt 0:00:14]} Bxc4 {[%emt 0:01:14]} 17. f5 {[%emt 0:02:08]} Bxd3 {[%emt 0:03:10]} 18. Qxd3 {[%emt 0:00:11]} Qb7 {[%emt 0:23:07]} 19. Bd2 {[%emt 0:19:13]} Rxc1 {[%emt 0:07:30]} 20. Rxc1 {[%emt 0:03:36]} Rc8 {[%emt 0:00:19]} 21. Rf1 {[%emt 0:00:59]} Nc4 {[%emt 0:12:33]} 22. fxe6 {[%emt 0:04:08]} fxe6 {[%emt 0:01:04]} 23. Bc1 {[%emt 0:01:13]} b5 {[%emt 0:04:16]} 24. Nh5 {[%emt 0:06:37]} Rf8 {[%emt 0:00:28]} 25. Qg3 {[%emt 0:02:52]} Rxf1+ {[%emt 0:00:09]} 26. Kxf1 {[%emt 0:00:04]} Nf8 {[%emt 0:00:06]} 27. Kg1 {[%emt 0:05:09]} Qf7 {[%emt 0:03:49]} 28. Nf4 {[%emt 0:01:54]} Qf6 {[%emt 0:00:15]} 29. Ne2 {[%emt 0:00:48]} d5 {[%emt 0:01:08]} 30. exd5 {[%emt 0:00:36]} exd5 {[%emt 0:00:05]} 31. h3 {[%emt 0:00:41]} h6 {[%emt 0:04:35]} 32. Qc7 {[%emt 0:01:40]} Qe6 {[%emt 0:00:55]} 33. Kf2 {[%emt 0:01:15]} a6 {[%emt 0:00:31]} 34. Qb8 {[%emt 0:00:44]} Qf5+ {[%emt 0:01:49]} 35. Ke1 {[%emt 0:00:39]} Kh7 {[%emt 0:00:20]} 36. Qb7 {[%emt 0:00:36]} Ng6 {[%emt 0:02:16]} 37. Qc7 {[%emt 0:01:39]} Qe4 {[%emt 0:04:39]} 38. Qg3 {[%emt 0:00:19]} Nh4 {[%emt 0:02:13]} 39. Kf2 {[%emt 0:00:16]} a5 {[%emt 0:00:43]} 40. Bf4 {[%emt 0:01:08]} Nf5 {[%emt 0:04:21]} 41. Qc3 {[%emt 0:05:50]} Nh4 {[%emt 0:10:56]} 42. Qg3 {[%emt 0:01:03]} Nf5 {[%emt 0:00:02]} 43. Qc3 {[%emt 0:00:29]} Qb1 {[%emt 0:01:25]} 44. Qf3 {[%emt 0:05:26]} Nb2 {[%emt 0:03:19]} 1/2-1/2

[Event "106th British-ch Major 2019"]
[Site "Torquay"]
[Date "2019.08.02"]
[Round "7.8"]
[White "Forster, Matthew"]
[Black "Taylor, William J"]
[Result "1-0"]
[ECO "A24"]
[WhiteElo "1825"]
[BlackElo "2062"]
[Annotator "NA"]
[PlyCount "51"]
[EventDate "2019.07.27"]
[EventType "swiss"]
[EventCountry "GBR"]
[SourceTitle "playchess.com"]
[Source "ChessBase"]
[SourceQuality "1"]
[TimeControl "40/5400+30:1800+30"]

1. c4 {[%emt 0:00:00]} Nf6 {[%emt 0:00:00]} 2. g3 {[%emt 0:00:09]} g6 {[%emt 0:00:02]} 3. Bg2 {[%emt 0:00:34]} Bg7 {[%emt 0:00:29]} 4. Nc3 {[%emt 0:00:35]} O-O {[%emt 0:00:28]} 5. e3 {[%emt 0:00:54]} d6 {[%emt 0:00:36]} 6. Nge2 {[%emt 0:01:14]} e5 {[%emt 0:00:53]} 7. d3 {[%emt 0:05:02]} c6 {[%emt 0:00:52]} 8. e4 {[%emt 0:01:34]} a5 {[%emt 0:03:59]} 9. O-O {[%emt 0:01:41]} Na6 {[%emt 0:00:59]} 10. h3 {[%emt 0:00:37]} Rb8 {[%emt 0:09:21]} 11. b3 {[%emt 0:01:38]} b5 {[%emt 0:03:31]} 12. Be3 {[%emt 0:04:05]} Nc7 {[%emt 0:32:45]} 13. Rc1 {[%emt 0:11:04]} d5 {[%emt 0:03:41]} 14. cxd5 {[%emt 0:04:42]} cxd5 {[%emt 0:00:22]} 15. d4 {[%emt 0:00:54]} Nxe4 {[%emt 0:03:28]} 16. Qc2 {[%emt 0:06:53]} Ne6 {[%emt 0:19:13]} 17. dxe5 {[%emt 0:14:44]} Bxe5 {[%emt 0:02:07]} 18. Nxd5 {[%emt 0:01:31]} Qxd5 {[%emt 0:06:50]} 19. Bxe4 {[%emt 0:01:11]} Qd7 {[%emt 0:00:01]} 20. Rfd1 {[%emt 0:03:13]} Qe7 {[%emt 0:00:02]} 21. f4 {[%emt 0:04:36]} f5 {[%emt 0:01:51]} 22. Bd5 {[%emt 0:02:23]} Bd6 {[%emt 0:00:13]} 23. Nd4 {[%emt 0:02:28]} Bd7 {[%emt 0:01:31]} 24. Bxe6+ {[%emt 0:02:05]} Bxe6 {[%emt 0:00:22]} 25. Nc6 {[%emt 0:00:17]} Qb7 {[%emt 0:02:21]} 26. Rxd6 {[%emt 0:00:47]} 1-0

[Event "106th British-ch Major 2019"]
[Site "Torquay"]
[Date "2019.08.02"]
[Round "7.9"]
[White "Ethelontis, Alexandros N"]
[Black "Hosdurga, Chirag"]
[Result "0-1"]
[ECO "A25"]
[WhiteElo "2154"]
[BlackElo "1926"]
[Annotator "NA"]
[PlyCount "79"]
[EventDate "2019.07.27"]
[EventType "swiss"]
[EventCountry "GBR"]
[SourceTitle "playchess.com"]
[Source "ChessBase"]
[SourceQuality "1"]
[TimeControl "40/5400+30:1800+30"]

1. c4 {[%emt 0:00:00]} e5 {[%emt 0:00:00]} 2. g3 {[%emt 0:00:00]} Nf6 {[%emt 0:00:00]} 3. Bg2 {[%emt 0:00:00]} Nc6 {[%emt 0:00:00]} 4. Nc3 {[%emt 0:00:23]} Bc5 {[%emt 0:00:10]} 5. e3 {[%emt 0:01:07]} O-O {[%emt 0:00:53]} 6. Nge2 {[%emt 0:00:15]} Re8 {[%emt 0:00:30]} 7. O-O {[%emt 0:00:43]} d6 {[%emt 0:01:40]} 8. a3 {[%emt 0:01:15]} Bg4 {[%emt 0:03:12]} 9. h3 {[%emt 0:00:53]} Bh5 {[%emt 0:00:56]} 10. g4 {[%emt 0:05:54]} Bg6 {[%emt 0:00:09]} 11. d4 {[%emt 0:01:10]} Bb6 {[%emt 0:00:43]} 12. b4 {[%emt 0:07:31]} a6 {[%emt 0:01:14]} 13. Bb2 {[%emt 0:19:09]} Qc8 {[%emt 0:06:19]} 14. Nd5 {[%emt 0:07:11]} Nxd5 {[%emt 0:02:27]} 15. cxd5 {[%emt 0:00:13]} Nb8 {[%emt 0:00:51]} 16. dxe5 {[%emt 0:03:07]} dxe5 {[%emt 0:00:20]} 17. Rc1 {[%emt 0:05:05]} Nd7 {[%emt 0:03:11]} 18. Qb3 {[%emt 0:08:27]} Nf6 {[%emt 0:04:23]} 19. Nc3 {[%emt 0:05:50]} h5 {[%emt 0:08:17]} 20. g5 {[%emt 0:01:24]} Nh7 {[%emt 0:00:53]} 21. Na4 {[%emt 0:01:07]} Ba7 {[%emt 0:00:25]} 22. h4 {[%emt 0:02:18]} Qg4 {[%emt 0:03:13]} 23. Rc4 {[%emt 0:10:26]} e4 {[%emt 0:00:59]} 24. Qc3 {[%emt 0:01:44]} f6 {[%emt 0:00:27]} 25. Rxc7 {[%emt 0:04:55]} b5 {[%emt 0:05:41]} 26. gxf6 {[%emt 0:04:17]} gxf6 {[%emt 0:04:28]} 27. Rxh7 {[%emt 0:03:01]} Kxh7 {[%emt 0:00:52]} 28. Qxf6 {[%emt 0:00:19]} Bf5 {[%emt 0:08:40]} 29. Rc1 {[%emt 0:00:28]} Bd7 {[%emt 0:07:41]} 30. Qf7+ {[%emt 0:01:32]} Kh6 {[%emt 0:00:11]} 31. Bf6 {[%emt 0:01:07]} Rg8 {[%emt 0:01:35]} 32. Bg5+ {[%emt 0:00:18]} Rxg5 {[%emt 0:00:23]} 33. hxg5+ {[%emt 0:00:11]} Qxg5 {[%emt 0:00:29]} 34. Qxd7 {[%emt 0:00:49]} Rg8 {[%emt 0:00:15]} 35. Rc6+ {[%emt 0:00:14]} Rg6 {[%emt 0:00:09]} 36. Rxg6+ {[%emt 0:00:23]} Qxg6 {[%emt 0:00:05]} 37. Nc5 {[%emt 0:01:06]} Qg4 {[%emt 0:00:21]} 38. Qxg4 {[%emt 0:01:01]} hxg4 {[%emt 0:00:06]} 39. Bxe4 {[%emt 0:00:39]} Bxc5 {[%emt 0:00:07]} 40. bxc5 {[%emt 0:00:03]} 0-1

[Event "106th British-ch Major 2019"]
[Site "Torquay"]
[Date "2019.08.02"]
[Round "7.10"]
[White "Price, Gwilym T"]
[Black "Rushbrooke, Remy"]
[Result "1-0"]
[ECO "C30"]
[WhiteElo "2138"]
[BlackElo "1963"]
[Annotator "NA"]
[PlyCount "89"]
[EventDate "2019.07.27"]
[EventType "swiss"]
[EventCountry "GBR"]
[SourceTitle "playchess.com"]
[Source "ChessBase"]
[SourceQuality "1"]
[TimeControl "40/5400+30:1800+30"]

1. e4 {[%emt 0:00:00]} e5 {[%emt 0:00:00]} 2. Nc3 {[%emt 0:00:00]} Nf6 {[%emt 0:00:00]} 3. Bc4 {[%emt 0:00:00]} Bc5 {[%emt 0:00:35]} 4. f4 {[%emt 0:00:00]} d6 {[%emt 0:01:06]} 5. Nf3 {[%emt 0:00:00]} O-O {[%emt 0:01:37]} 6. d3 {[%emt 0:01:01]} c6 {[%emt 0:01:28]} 7. fxe5 {[%emt 0:03:29]} dxe5 {[%emt 0:00:55]} 8. Qe2 {[%emt 0:00:54]} b5 {[%emt 0:05:49]} 9. Bb3 {[%emt 0:00:16]} Nbd7 {[%emt 0:02:04]} 10. a4 {[%emt 0:03:47]} b4 {[%emt 0:01:17]} 11. Nd1 {[%emt 0:00:36]} h6 {[%emt 0:07:49]} 12. Ne3 {[%emt 0:03:06]} Re8 {[%emt 0:00:29]} 13. O-O {[%emt 0:01:51]} Nf8 {[%emt 0:02:22]} 14. Kh1 {[%emt 0:01:45]} Be6 {[%emt 0:03:04]} 15. Bxe6 {[%emt 0:07:37]} Nxe6 {[%emt 0:00:08]} 16. Nf5 {[%emt 0:00:12]} Nd4 {[%emt 0:10:56]} 17. N3xd4 {[%emt 0:01:56]} exd4 {[%emt 0:00:07]} 18. Qf3 {[%emt 0:01:59]} Re6 {[%emt 0:04:26]} 19. b3 {[%emt 0:01:16]} Qf8 {[%emt 0:10:16]} 20. g4 {[%emt 0:14:10]} Nd7 {[%emt 0:10:00]} 21. h4 {[%emt 0:03:34]} Ne5 {[%emt 0:00:28]} 22. Qh3 {[%emt 0:00:52]} Rd8 {[%emt 0:05:19]} 23. Rf2 {[%emt 0:02:45]} a5 {[%emt 0:05:08]} 24. Bd2 {[%emt 0:01:29]} Qe8 {[%emt 0:06:07]} 25. Rg1 {[%emt 0:02:45]} Rd7 {[%emt 0:03:25]} 26. Qf1 {[%emt 0:02:52]} Bf8 {[%emt 0:09:53]} 27. Qd1 {[%emt 0:04:38]} c5 {[%emt 0:00:39]} 28. g5 {[%emt 0:01:30]} h5 {[%emt 0:01:42]} 29. Qxh5 {[%emt 0:09:10]} c4 {[%emt 0:00:04]} 30. bxc4 {[%emt 0:06:32]} b3 {[%emt 0:00:06]} 31. Qe2 {[%emt 0:02:00]} bxc2 {[%emt 0:00:35]} 32. Bf4 {[%emt 0:02:11]} Nxc4 {[%emt 0:03:52]} 33. dxc4 {[%emt 0:07:05]} d3 {[%emt 0:00:05]} 34. Qg4 {[%emt 0:00:22]} Rxe4 {[%emt 0:01:27]} 35. Nh6+ {[%emt 0:00:24]} Kh8 {[%emt 0:00:17]} 36. Nxf7+ {[%emt 0:03:09]} Rxf7 {[%emt 0:02:34]} 37. Qh5+ {[%emt 0:00:00]} Kg8 {[%emt 0:00:06]} 38. g6 {[%emt 0:00:00]} Bc5 {[%emt 0:00:03]} 39. Qh7+ {[%emt 0:00:00]} Kf8 {[%emt 0:00:03]} 40. Bd6+ {[%emt 0:00:00]} Bxd6 {[%emt 0:00:10]} 41. Rxf7+ {[%emt 0:29:05]} Qxf7 {[%emt 0:30:16]} 42. gxf7 {[%emt 0:00:04]} Rxh4+ {[%emt 0:00:22]} 43. Qxh4 {[%emt 0:00:12]} d2 {[%emt 0:00:05]} 44. Qh8+ {[%emt 0:00:14]} Kxf7 {[%emt 0:00:05]} 45. Qxg7+ {[%emt 0:00:09]} 1-0

[Event "106th British-ch Major 2019"]
[Site "Torquay"]
[Date "2019.08.02"]
[Round "7.11"]
[White "Barton, R Alan"]
[Black "Eames, Robert S"]
[Result "0-1"]
[ECO "A48"]
[WhiteElo "1941"]
[BlackElo "2136"]
[Annotator "NA"]
[PlyCount "104"]
[EventDate "2019.07.27"]
[EventType "swiss"]
[EventCountry "GBR"]
[SourceTitle "playchess.com"]
[Source "ChessBase"]
[SourceQuality "1"]
[TimeControl "40/5400+30:1800+30"]

1. Nf3 {[%emt 0:00:00]} c5 {[%emt 0:00:35]} 2. c3 {[%emt 0:00:10]} Nf6 {[%emt 0:01:54]} 3. d4 {[%emt 0:00:36]} b6 {[%emt 0:00:30]} 4. Bf4 {[%emt 0:01:55]} Bb7 {[%emt 0:02:01]} 5. e3 {[%emt 0:00:52]} g6 {[%emt 0:05:14]} 6. Nbd2 {[%emt 0:01:21]} Bg7 {[%emt 0:00:22]} 7. Bc4 {[%emt 0:04:44]} O-O {[%emt 0:01:04]} 8. O-O {[%emt 0:01:08]} d5 {[%emt 0:01:40]} 9. Be2 {[%emt 0:01:04]} Nh5 {[%emt 0:05:18]} 10. Be5 {[%emt 0:15:50]} Nd7 {[%emt 0:07:46]} 11. Bxg7 {[%emt 0:00:00]} Nxg7 {[%emt 0:00:07]} 12. a4 {[%emt 0:00:00]} a6 {[%emt 0:01:00]} 13. Qb3 {[%emt 0:00:00]} Nf5 {[%emt 0:03:02]} 14. Rfe1 {[%emt 0:02:45]} c4 {[%emt 0:07:38]} 15. Qb4 {[%emt 0:03:30]} Nd6 {[%emt 0:08:08]} 16. Bf1 {[%emt 0:02:09]} a5 {[%emt 0:03:50]} 17. Qa3 {[%emt 0:00:06]} b5 {[%emt 0:00:26]} 18. axb5 {[%emt 0:02:47]} Nxb5 {[%emt 0:01:51]} 19. Qa4 {[%emt 0:01:14]} Bc6 {[%emt 0:03:23]} 20. Qc2 {[%emt 0:01:28]} f5 {[%emt 0:02:19]} 21. Ng5 {[%emt 0:04:56]} Nc7 {[%emt 0:02:34]} 22. Ndf3 {[%emt 0:02:49]} h6 {[%emt 0:03:31]} 23. Nh3 {[%emt 0:02:08]} g5 {[%emt 0:02:10]} 24. Ne5 {[%emt 0:12:41]} Nxe5 {[%emt 0:00:09]} 25. dxe5 {[%emt 0:00:08]} Qb8 {[%emt 0:05:29]} 26. g4 {[%emt 0:08:35]} e6 {[%emt 0:08:33]} 27. f4 {[%emt 0:01:28]} Ne8 {[%emt 0:05:51]} 28. gxf5 {[%emt 0:04:25]} Rxf5 {[%emt 0:03:03]} 29. Bg2 {[%emt 0:00:26]} Ng7 {[%emt 0:01:59]} 30. Rad1 {[%emt 0:05:24]} Qb6 {[%emt 0:00:48]} 31. Rd4 {[%emt 0:00:27]} Rb8 {[%emt 0:01:04]} 32. Re2 {[%emt 0:01:23]} Be8 {[%emt 0:02:20]} 33. Kh1 {[%emt 0:03:52]} Bh5 {[%emt 0:01:54]} 34. Red2 {[%emt 0:01:32]} g4 {[%emt 0:01:04]} 35. Nf2 {[%emt 0:01:10]} g3 {[%emt 0:01:34]} 36. hxg3 {[%emt 0:01:25]} Bg6 {[%emt 0:00:18]} 37. e4 {[%emt 0:04:17]} Rh5+ {[%emt 0:00:05]} 38. Kg1 {[%emt 0:00:50]} Rf8 {[%emt 0:00:30]} 39. g4 {[%emt 0:03:24]} Rh4 {[%emt 0:00:47]} 40. f5 {[%emt 0:00:55]} dxe4 {[%emt 0:01:02]} 41. f6 {[%emt 0:10:32]} Nf5 {[%emt 0:06:07]} 42. gxf5 {[%emt 0:01:11]} exf5 {[%emt 0:00:46]} 43. Rd6 {[%emt 0:06:22]} Qe3 {[%emt 0:02:10]} 44. Rd8 {[%emt 0:00:47]} Qe1+ {[%emt 0:04:32]} 45. Bf1 {[%emt 0:00:06]} e3 {[%emt 0:01:05]} 46. Rxf8+ {[%emt 0:02:26]} Kxf8 {[%emt 0:00:07]} 47. Rd8+ {[%emt 0:00:14]} Be8 {[%emt 0:01:51]} 48. Rxe8+ {[%emt 0:03:32]} Kxe8 {[%emt 0:00:14]} 49. Qa4+ {[%emt 0:00:08]} Kf8 {[%emt 0:00:24]} 50. Qc2 {[%emt 0:08:00]} exf2+ {[%emt 0:00:57]} 51. Kg2 {[%emt 0:00:49]} Rg4+ {[%emt 0:00:17]} 52. Kf3 {[%emt 0:01:38]} Qxf1 {[%emt 0:06:26]} 0-1